Cogmind - Beta 12 @@@ ROGUE MODE // 2023.03.22 @ 23:53:56 Player: lyrabold Result: Destroyed by B-90 Cyclops with Nova Cannon Performance ------------- Evolutions (8) 4000 Regions Visited (12) 2400 Robots Destroyed (12) 60 Value Destroyed (473) 473 Prototype IDs (2) 40 Alien Tech Used (0) 0 Bonus (3621) 3621 TOTAL SCORE: 10594 Bonus ------- Pacifist 1987 High Alert Combat Kills 134 Entered DSFs 1500 Cogmind --------- Core Integrity 0/1450 Matter 300/300 Energy 31/100 System Corruption 5% Temperature Cool (18) Movement Core (50) Location -2/Research Parts ------- > --- POWER (1) -------- (None) > --- PROPULSION (10) -- (None) > --- UTILITY (10) ----- Enhanced Optical Array Improved Signal Interpreter Advanced Terrain Scan Processor Hacking Suite System Shield > --- WEAPON (2) ------- (None) > --- INVENTORY (5) ---- Q-thruster Q-thruster Electron Diverter Improved Core Shielding Enhanced Nova Cannon Peak State ------------ > --- POWER ------------ Quantum Reactor > --- PROPULSION ------- Nuclear Pulse Thruster Cooled Cesium-ion Thruster Nuclear Pulse Array Impulse Thruster Q-thruster Q-thruster Impulse Thruster Array > --- UTILITY ---------- Advanced Coolant Injector Enhanced Optical Array Improved Signal Interpreter Advanced Terrain Scan Processor Hacking Suite System Shield System Shield System Shield > --- WEAPON ----------- Lance > --- INVENTORY -------- Q-thruster Q-thruster Electron Diverter Improved Core Shielding Enhanced Nova Cannon [Rating: 111] Favorites ----------- Power Enhanced Nuclear Core Engine Light Ion Engine Power Core Enhanced Nuclear Core Reactor Quantum Reactor Propulsion VTOL Module Treads Light Treads Flight Unit VTOL Module Utility System Shield Device Advanced Coolant Injector Processor Improved Signal Interpreter Hackware System Shield Protection Improved Light Armor Plating Weapon Lance Energy Cannon Enhanced Nova Cannon Launcher Improved Grenade Launcher Piercing Weapon Lance Build | -11 -10 -9 -8 -7 -7 -6 -5 -5 -4 -3 -3 -2 ------- Run | Jun Mat Mat Mat Fac DSF Fac Fac DSF Fac Res DSF Res Slots Evolved 16 | . . 2 2 2 . 2 2 . 2 2 . 2 Power . | . . . . . . . . . . . . . Propulsion 8 | . . 1 1 1 . 1 1 . 1 1 . 1 Utility 8 | . . 1 1 1 . 1 1 . 1 1 . 1 Weapon . | . . . . . . . . . . . . . Parts Attached 50 | 2 1 . 5 2 2 6 2 4 5 2 1 18 Power 4 | . 1 . . . . 1 . . . . . 2 Engine 1 | . 1 . . . . . . . . . . . Core 1 | . . . . . . 1 . . . . . . Reactor 2 | . . . . . . . . . . . . 2 Propulsion 22 | 2 . . 2 . 1 2 1 1 2 1 . 10 Treads 2 | 2 . . . . . . . . . . . . Leg . | . . . . . . . . . . . . . Wheel . | . . . . . . . . . . . . . Hover . | . . . . . . . . . . . . . Flight 20 | . . . 2 . 1 2 1 1 2 1 . 10 Utility 19 | . . . 3 2 1 3 1 . 3 1 . 5 Device 7 | . . . 1 . . 1 . . 3 . . 2 Storage . | . . . . . . . . . . . . . Processor 5 | . . . 2 . . 2 . . . . . 1 Hackware 4 | . . . . 1 . . . . . 1 . 2 Protection 3 | . . . . 1 1 . 1 . . . . . Artifact . | . . . . . . . . . . . . . Weapon 5 | . . . . . . . . 3 . . 1 1 Energy Gun . | . . . . . . . . . . . . . Energy Cannon 1 | . . . . . . . . . . . . 1 Ballistic Gun . | . . . . . . . . . . . . . Ballistic Cannon . | . . . . . . . . . . . . . Launcher 2 | . . . . . . . . 1 . . 1 . Special Weapon . | . . . . . . . . . . . . . Impact Weapon . | . . . . . . . . . . . . . Slashing Weapon . | . . . . . . . . . . . . . Piercing Weapon 2 | . . . . . . . . 2 . . . . Special Melee Weapon . | . . . . . . . . . . . . . Unidentified Prototypes 1 | . . . . . . 1 . . . . . . Parts Lost 36 | . . 3 . . . 2 . . 4 . 4 23 Power 2 | . . 1 . . . . . . . . . 1 Propulsion 21 | . . 2 . . . 1 . . 2 . 2 14 Utility 11 | . . . . . . 1 . . 2 . 2 6 Weapon 2 | . . . . . . . . . . . . 2 Highest Loss Streak 18 | . . 2 . . . 2 . . 3 . 4 18 To Critical Strikes . | . . . . . . . . . . . . . Average Slot Usage (%) 55 | . 35 22 13 45 61 73 67 76 74 78 80 69 Core 2 | . . . . . . 4 5 5 5 4 4 1 Treads 3 | . 28 17 . . . . . . . . . . Flight 20 | . . . 2 15 23 31 29 29 32 33 28 26 Device 4 | . . . 2 7 . 6 . . 5 14 14 5 Processor 11 | . . . 9 15 15 14 17 17 15 14 14 13 Hackware 6 | . . . . 1 7 6 5 5 5 6 9 14 Protection 2 | . . . . 5 15 8 8 11 4 . . . Piercing Weapon 1 | . . . . . . . . . 5 4 4 3 Naked Turns 34 | . . 5 29 . . . . . . . . . Heaviest Build 25 | . 3 3 1 4 10 12 18 21 21 14 20 25 Greatest Support 64 | 3 3 3 8 8 12 24 22 28 39 41 41 64 Greatest Overweight (x) . | . . . . . . . . . . . . . Average Overweight (x) . | . . . . . . . . . . . . . Largest Inventory Capacity 5 | 5 5 5 5 5 5 5 5 5 5 5 5 5 Average Capacity 5 | 5 5 5 5 5 5 5 5 5 5 5 5 5 Most Carried 5 | . . . 5 5 5 5 5 5 5 5 5 5 Average Carried 3 | . . . 1 4 4 4 4 4 4 4 4 4 Final Capacity 5 | 5 5 5 5 5 5 5 5 5 5 5 5 5 Final Carried 5 | . . . 5 5 5 5 5 5 5 5 5 5 Class Distribution -------------------- 33% | Mutant 28% | Scout 17% | Hacker-Sprinter 11% | Sprinter 9% | Hacker-Scout Dominant Class ---------------- Mutant | -10/Materials Mutant | -9/Materials Mutant | -8/Materials Scout | -7/Factory Scout | -7/DSF Scout | -6/Factory Scout | -5/Factory Scout | -5/DSF Scout | -4/Factory Scout | -3/Research Scout | -3/DSF Hacker-Sprinter | -2/Research Resources | -11 -10 -9 -8 -7 -7 -6 -5 -5 -4 -3 -3 -2 ----------- Run | Jun Mat Mat Mat Fac DSF Fac Fac DSF Fac Res DSF Res Matter Collected 646 | 156 64 . . . . . . . 266 10 . 150 Remotely . | . . . . . . . . . . . . . Salvage Created 232 | . . . . . . . . 22 28 . . 182 Parts 22 | . . . . . . . . 4 3 . . 15 Haulers Intercepted . | . . . . . . . . . . . . . Recyclers Shooed . | . . . . . . . . . . . . . Parts Field Recycled . | . . . . . . . . . . . . . Retrieved Matter . | . . . . . . . . . . . . . Parts Self-Destructed . | . . . . . . . . . . . . . Prevented . | . . . . . . . . . . . . . Kills | -11 -10 -9 -8 -7 -7 -6 -5 -5 -4 -3 -3 -2 ------- Run | Jun Mat Mat Mat Fac DSF Fac Fac DSF Fac Res DSF Res Combat Hostiles Destroyed 10 | . . . . . . . . 1 . . . 9 Melee 1 | . . . . . . . . . . . . 1 AOE 9 | . . . . . . . . 1 . . . 8 Classes Destroyed 4 | . . . . . . . . 1 1 . . 2 Builder 1 | . . . . . . . . . 1 . . . Mechanic 1 | . . . . . . . . . . . . 1 Swarmer 9 | . . . . . . . . . . . . 9 Cutter 1 | . . . . . . . . 1 . . . . Best Kill Streak 6 | . . . . . . . . 1 1 . . 6 Combat Bots Only 6 | . . . . . . . . 1 . . . 6 Max Kills in Single Turn 3 | . . . . . . . . 1 1 . . 3 Gunslinging . | . . . . . . . . . . . . . Exploded 3 | . . . . . . . . 1 . . . 3 Melee 1 | . . . . . . . . . . . . 1 Uniques/NPCs Destroyed . | . . . . . . . . . . . . . Combat | -11 -10 -9 -8 -7 -7 -6 -5 -5 -4 -3 -3 -2 -------- Run | Jun Mat Mat Mat Fac DSF Fac Fac DSF Fac Res DSF Res Damage Taken 4614 | . 101 491 368 . . 141 . 133 410 . 112 2858 Core 2171 | . 21 239 368 . . . . . 39 . 48 1456 Absorbed by Shields 12 | . . . . . . . . . 12 . . . Core Remaining (%) 84 | 100 91 40 33 . 100 100 . 100 96 . 96 . Volleys Fired 8 | . . . . . . . . 2 . . 1 5 Largest 1 | . . . . . . . . 1 . . 1 1 Hottest 120 | . . . . . . . . 36 . . 36 120 Shots Fired 8 | . . . . . . . . 2 . . 1 5 Gun . | . . . . . . . . . . . . . Cannon 1 | . . . . . . . . . . . . 1 Launcher 7 | . . . . . . . . 2 . . 1 4 Special . | . . . . . . . . . . . . . Kinetic . | . . . . . . . . . . . . . Thermal 1 | . . . . . . . . . . . . 1 Explosive 7 | . . . . . . . . 2 . . 1 4 Electromagnetic . | . . . . . . . . . . . . . Robot Hit Streak 2 | . . . . . . . . . . . . 2 Robot Miss Streak 2 | . . . . . . . . . . . . 2 Penetration Max . | . . . . . . . . . . . . . Secondary Targets . | . . . . . . . . . . . . . Shots Hit Robots 5 | . . . . . . . . . 1 . . 4 Core Hits 25 | . 1 3 . . . . . 2 1 . . 18 Critical Kills . | . . . . . . . . . . . . . Critical Parts Destroyed . | . . . . . . . . . . . . . Critical Strikes 1 | . . . . . . . . . . . . 1 Impale 1 | . . . . . . . . . . . . 1 Melee Attacks 14 | . . . . . . . . . 3 . . 11 Impact . | . . . . . . . . . . . . . Slashing . | . . . . . . . . . . . . . Piercing 14 | . . . . . . . . . 3 . . 11 Sneak Attacks 2 | . . . . . . . . . 1 . . 1 Combat Hostiles . | . . . . . . . . . . . . . Follow-up Attacks . | . . . . . . . . . . . . . Damage Inflicted 1875 | . 20 37 . . . . . 148 98 . . 1572 Guns . | . . . . . . . . . . . . . Cannons . | . . . . . . . . . . . . . Explosions 1557 | . . . . . . . . 148 . . . 1409 Melee 261 | . . . . . . . . . 98 . . 163 Ramming 57 | . 20 37 . . . . . . . . . . Kinetic . | . . . . . . . . . . . . . Thermal . | . . . . . . . . . . . . . Explosive 1557 | . . . . . . . . 148 . . . 1409 Electromagnetic . | . . . . . . . . . . . . . Impact . | . . . . . . . . . . . . . Slashing . | . . . . . . . . . . . . . Piercing 261 | . . . . . . . . . 98 . . 163 Highest Corruption 5 | . . . . . . . . . . . . 5 Average Corruption 1 | . . . . . . . . . . . . 1 Corruption Purged . | . . . . . . . . . . . . . Corruption Blocked . | . . . . . . . . . . . . . Overload Shots . | . . . . . . . . . . . . . Overflow Damage 111 | . . . . . . . . . . . . 111 Projectiles . | . . . . . . . . . . . . . Explosions 111 | . . . . . . . . . . . . 111 Melee . | . . . . . . . . . . . . . Knockbacks 1 | . 1 . . . . . . . . . . . Impact 1 | . 1 . . . . . . . . . . . Kinetic . | . . . . . . . . . . . . . Secondary . | . . . . . . . . . . . . . Self-Inflicted Damage 148 | . 9 15 . . . . . . . . . 124 Shots 1 | . . . . . . . . . . . . 1 Rammed 14 | . 3 11 . . . . . . . . . . Targets Rammed 14 | . 3 11 . . . . . . . . . . Kicked . | . . . . . . . . . . . . . Crushed . | . . . . . . . . . . . . . Highest Temperature 222 | . . . . . . 14 . 24 222 107 . 199 Average Temperature 78 | . . . . . . 9 . 16 79 57 . 81 Received Heat Transfer 588 | . 48 222 36 . . 15 . . 87 . . 180 Siege Activations . | . . . . . . . . . . . . . Robots Corrupted . | . . . . . . . . . . . . . Combat Hostiles . | . . . . . . . . . . . . . Parts Fried . | . . . . . . . . . . . . . Impact Corruptions . | . . . . . . . . . . . . . Robots Melted . | . . . . . . . . . . . . . Combat Hostiles . | . . . . . . . . . . . . . Parts Melted . | . . . . . . . . . . . . . Heat Transferred . | . . . . . . . . . . . . . Parts Sabotaged . | . . . . . . . . . . . . . Parts Stolen . | . . . . . . . . . . . . . Parts Stripped . | . . . . . . . . . . . . . Power Chain Reactions 1 | . . . . . . . . . 1 . . . Missiles Intercepted . | . . . . . . . . . . . . . Alert | -11 -10 -9 -8 -7 -7 -6 -5 -5 -4 -3 -3 -2 ------- Run | Jun Mat Mat Mat Fac DSF Fac Fac DSF Fac Res DSF Res Peak Influence 1212 | . 64 186 229 103 72 211 100 105 442 231 183 1212 Initial 231 | . . 26 74 103 72 37 100 73 54 231 173 80 Average 247 | . 26 80 143 103 72 65 100 95 176 231 164 646 Maximum Alert Level 4 | . . . 1 . . 1 . . 2 1 . 4 Low Security (%) 69 | 100 100 100 89 100 100 93 100 100 69 . 100 16 Level 1 9 | . . . 10 . . 6 . . 22 100 . 9 Level 2 7 | . . . . . . . . . 8 . . 24 Level 3 11 | . . . . . . . . . . . . 42 Level 4 1 | . . . . . . . . . . . . 6 Level 5 . | . . . . . . . . . . . . . High Security . | . . . . . . . . . . . . . Max Security . | . . . . . . . . . . . . . Squads Dispatched 26 | . 2 4 3 . . 5 . 1 4 . 1 6 Investigation 14 | . 2 2 2 . . 1 . . 4 . . 3 Extermination . | . . . . . . . . . . . . . Reinforcement 12 | . . 2 1 . . 4 . 1 . . 1 3 Assault . | . . . . . . . . . . . . . Garrison . | . . . . . . . . . . . . . Intercept . | . . . . . . . . . . . . . Searches Triggered . | . . . . . . . . . . . . . Construction Impeded . | . . . . . . . . . . . . . Haulers Reinforced . | . . . . . . . . . . . . . Active Scanning Responses . | . . . . . . . . . . . . . Cargo Convoy Interrupts . | . . . . . . . . . . . . . Stealth | -11 -10 -9 -8 -7 -7 -6 -5 -5 -4 -3 -3 -2 --------- Run | Jun Mat Mat Mat Fac DSF Fac Fac DSF Fac Res DSF Res Distress Signals 10 | . . 1 . . . 1 . . 2 . . 6 Communications Jammed . | . . . . . . . . . . . . . Distress Signals . | . . . . . . . . . . . . . Times Spotted 162 | . 5 19 14 . 1 14 . 4 25 . 5 75 Peak Tracking Total 32 | . 5 13 7 . 1 11 . 3 19 . 5 32 Tactical Retreats 15 | . . 2 2 . . . . . 3 . . 8 Traps | -11 -10 -9 -8 -7 -7 -6 -5 -5 -4 -3 -3 -2 ------- Run | Jun Mat Mat Mat Fac DSF Fac Fac DSF Fac Res DSF Res Traps Triggered 3 | . . . . . . . . . 2 . . 1 Indirectly . | . . . . . . . . . . . . . Trap Hack Attempts . | . . . . . . . . . . . . . Triggered . | . . . . . . . . . . . . . Disarmed . | . . . . . . . . . . . . . Reprogrammed . | . . . . . . . . . . . . . Reused . | . . . . . . . . . . . . . Traps Extracted . | . . . . . . . . . . . . . Installed . | . . . . . . . . . . . . . Triggered . | . . . . . . . . . . . . . Exploded 1 | . . . . . . 1 . . . . . . Machines | -11 -10 -9 -8 -7 -7 -6 -5 -5 -4 -3 -3 -2 ---------- Run | Jun Mat Mat Mat Fac DSF Fac Fac DSF Fac Res DSF Res Machines Disabled 1 | . . . . . . . . . . . . 1 Max in Single Turn 1 | . . . . . . . . . . . . 1 Garrison Access 3 | . . . . . . 1 . . 1 . . 1 Machines Repaired . | . . . . . . . . . . . . . Machines Sabotaged . | . . . . . . . . . . . . . Overloaded Fab Kills 8 | . . . . . . 2 . . 6 . . . Hacking | -11 -10 -9 -8 -7 -7 -6 -5 -5 -4 -3 -3 -2 --------- Run | Jun Mat Mat Mat Fac DSF Fac Fac DSF Fac Res DSF Res Machines Accessed 34 | . 3 3 2 2 . 8 1 . 5 1 . 9 Terminals 24 | . 2 3 2 1 . 5 1 . 3 1 . 6 Fabricators 4 | . . . . . . 2 . . 1 . . 1 Repair Stations . | . . . . . . . . . . . . . Recycling Units 1 | . 1 . . . . . . . . . . . Scanalyzers 1 | . . . . . . . . . . . . 1 Garrison Access 4 | . . . . 1 . 1 . . 1 . . 1 Total Hacks 94 | . 13 9 8 3 . 15 2 . 18 1 . 25 Successful 43 | . 7 6 2 1 . 5 1 . 7 1 . 13 Failed 51 | . 6 3 6 2 . 10 1 . 11 . . 12 Catastrophic 22 | . 1 2 4 1 . 4 . . 4 . . 6 Database Lockouts . | . . . . . . . . . . . . . Manual 49 | . 7 6 4 . . 9 . . 9 . . 14 Terminals 81 | . 11 9 8 2 . 12 2 . 15 1 . 21 Fabricators 5 | . . . . . . 2 . . 1 . . 2 Repair Stations . | . . . . . . . . . . . . . Recycling Units 2 | . 2 . . . . . . . . . . . Scanalyzers 1 | . . . . . . . . . . . . 1 Garrison Access 5 | . . . . 1 . 1 . . 2 . . 1 Terminal Hacks 23 | . 3 4 1 1 . 2 1 . 4 1 . 6 Robot Analysis 1 | . 1 . . . . . . . . . . . Open DSF 3 | . . . . 1 . . 1 . . 1 . . Branch Access Points 3 | . . 1 . . . . . . 1 . . 1 Emergency Access Points 3 | . 1 1 . . . . . . 1 . . . Terminal Index 2 | . . . . . . . . . 1 . . 1 Locate Traps 1 | . . . . . . 1 . . . . . . Zone Layout 10 | . 1 2 1 . . 1 . . 1 . . 4 Fabricator Hacks . | . . . . . . . . . . . . . Repair Station Hacks . | . . . . . . . . . . . . . Recycling Unit Hacks 1 | . 1 . . . . . . . . . . . Report Inventory 1 | . 1 . . . . . . . . . . . Scanalyzer 1 | . . . . . . . . . . . . 1 Insert Component 1 | . . . . . . . . . . . . 1 Garrison Access Hacks 3 | . . . . . . 1 . . 1 . . 1 Seal Access 3 | . . . . . . 1 . . 1 . . 1 Unauthorized Hacks 15 | . 3 2 1 . . 2 . . 2 . . 5 Terminals 10 | . 2 2 1 . . . . . 1 . . 4 Botnet 6 | . 1 . 1 . . . . . 1 . . 3 Disrupt 2 | . . 1 . . . . . . . . . 1 Operators 2 | . 1 1 . . . . . . . . . . Fabricators 4 | . . . . . . 2 . . 1 . . 1 Liberate 1 | . . . . . . 1 . . . . . . Overload 3 | . . . . . . 1 . . 1 . . 1 Repair Stations . | . . . . . . . . . . . . . Recycling Units 1 | . 1 . . . . . . . . . . . Tunnel 1 | . 1 . . . . . . . . . . . Scanalyzers . | . . . . . . . . . . . . . Garrison Access . | . . . . . . . . . . . . . Data Cores Recovered . | . . . . . . . . . . . . . Used . | . . . . . . . . . . . . . Hacking Detections 24 | . 2 3 2 1 . 6 . . 3 . . 7 Full Trace Events 10 | . 2 2 2 . . . . . 2 . . 2 Feedback Events . | . . . . . . . . . . . . . Feedback Blocked . | . . . . . . . . . . . . . Robot Schematics Acquired . | . . . . . . . . . . . . . Robots Built . | . . . . . . . . . . . . . Authchips . | . . . . . . . . . . . . . Time . | . . . . . . . . . . . . . Total Robot Build Rating . | . . . . . . . . . . . . . Part Schematics Acquired . | . . . . . . . . . . . . . Parts Built . | . . . . . . . . . . . . . Authchips . | . . . . . . . . . . . . . Time . | . . . . . . . . . . . . . Total Part Build Rating . | . . . . . . . . . . . . . Parts Repaired . | . . . . . . . . . . . . . Time . | . . . . . . . . . . . . . Parts Recycled . | . . . . . . . . . . . . . Recycled Matter . | . . . . . . . . . . . . . Retrieved Matter . | . . . . . . . . . . . . . Retrieved Components . | . . . . . . . . . . . . . Parts Scanalyzed . | . . . . . . . . . . . . . Part Schematics Acquired . | . . . . . . . . . . . . . Parts Damaged . | . . . . . . . . . . . . . Bothacking | -11 -10 -9 -8 -7 -7 -6 -5 -5 -4 -3 -3 -2 ------------ Run | Jun Mat Mat Mat Fac DSF Fac Fac DSF Fac Res DSF Res Used RIF Installer . | . . . . . . . . . . . . . Robots Hacked . | . . . . . . . . . . . . . Non-combat . | . . . . . . . . . . . . . Combat . | . . . . . . . . . . . . . Robot Hacks Applied . | . . . . . . . . . . . . . Relay Couplers Released . | . . . . . . . . . . . . . Fabnet Peak Effective % . | . . . . . . . . . . . . . Robots Rewired . | . . . . . . . . . . . . . Allies Hacked . | . . . . . . . . . . . . . Hacks Repelled . | . . . . . . . . . . . . . Allies | -11 -10 -9 -8 -7 -7 -6 -5 -5 -4 -3 -3 -2 -------- Run | Jun Mat Mat Mat Fac DSF Fac Fac DSF Fac Res DSF Res Total Allies . | . . . . . . . . . . . . . Largest Group . | . . . . . . . . . . . . . Highest-Rated Group . | . . . . . . . . . . . . . Highest-Rated Ally . | . . . . . . . . . . . . . Total Orders . | . . . . . . . . . . . . . Ally Attacks . | . . . . . . . . . . . . . Total Damage . | . . . . . . . . . . . . . Kills . | . . . . . . . . . . . . . Allies Corrupted . | . . . . . . . . . . . . . Allies Melted . | . . . . . . . . . . . . . Intel | -11 -10 -9 -8 -7 -7 -6 -5 -5 -4 -3 -3 -2 ------- Run | Jun Mat Mat Mat Fac DSF Fac Fac DSF Fac Res DSF Res Robot Analysis Total 1 | . 1 . . . . . . . . . . . Derelict Logs Recovered . | . . . . . . . . . . . . . Drone Launches . | . . . . . . . . . . . . . Drone Recoveries . | . . . . . . . . . . . . . Exploration | -11 -10 -9 -8 -7 -7 -6 -5 -5 -4 -3 -3 -2 ------------- Run | Jun Mat Mat Mat Fac DSF Fac Fac DSF Fac Res DSF Res Turns Passed 814 | 13 42 95 97 44 12 125 12 18 120 16 10 210 Spaces Moved 2153 | 20 74 167 177 123 30 381 22 32 415 68 32 612 Core 427 | 20 74 167 154 . . . . . . . . 12 Treads . | . . . . . . . . . . . . . Legs . | . . . . . . . . . . . . . Wheels . | . . . . . . . . . . . . . Hover . | . . . . . . . . . . . . . Flight 1726 | . . . 23 123 30 381 22 32 415 68 32 600 Fastest Speed 11 | 50 50 50 32 32 29 25 24 16 17 18 17 11 Average Speed 28 | 50 50 50 47 32 29 26 24 20 20 18 18 21 Slowest Speed 50 | 50 50 50 50 35 29 35 24 24 27 18 20 50 Overloaded Moves 59 | . . . . . . . . 12 4 . 17 26 Propulsion Burnouts 1 | . . . . . . . . . . . . 1 Robots Hopped 44 | . . . 1 . . 7 1 1 11 . 3 20 Cave-ins Triggered . | . . . . . . . . . . . . . Exploration Rate (%) 24 | 3 25 44 24 6 41 21 1 49 16 4 49 40 Regions Visited 12 Branch Regions . Pre-discovered Areas 1 | . 1 . . . . . . . . . . . Known Exits Taken 6 | . . . 1 1 . 1 1 . 1 1 . . Unknown Exits Taken 3 | 1 1 1 . . . . . . . . . . Scrap Searched . | . . . . . . . . . . . . . Spaces Dug 11 | . . . . . . . . 6 1 . . 4 Terrain Destroyed 63 | . . . . . . . . 9 1 . 5 48 Melee 5 | . . . . . . . . . 1 . . 4 Projectile . | . . . . . . . . . . . . . AOE 58 | . . . . . . . . 9 . . 5 44 Terrain Rammed . | . . . . . . . . . . . . . Walls Destroyed . | . . . . . . . . . . . . . Machines Disabled . | . . . . . . . . . . . . . Actions | -11 -10 -9 -8 -7 -7 -6 -5 -5 -4 -3 -3 -2 --------- Run | Jun Mat Mat Mat Fac DSF Fac Fac DSF Fac Res DSF Res Total 2251 | 21 77 177 185 125 32 394 26 38 430 70 31 645 Wait 31 | . . . . . . 9 3 . 12 . . 7 Move 2062 | 19 73 166 174 122 29 367 19 29 395 67 26 576 Hop 35 | . . . 1 . . 6 1 1 8 . 2 16 Pick Up 25 | . . . 5 1 1 4 1 1 3 1 1 7 Fast Attach 28 | 2 1 . 5 1 . 2 . 2 3 1 . 11 Attach 19 | . . . . 1 1 4 2 1 2 1 1 6 Detach 2 | . . . . . . 1 . . . . . 1 Swap 4 | . . . . . 1 1 . 1 . . . 1 Drop 5 | . . . . . . . . 1 . . . 4 Fire 8 | . . . . . . . . 2 . . 1 5 Melee 14 | . . . . . . . . . 3 . . 11 Ram 14 | . 3 11 . . . . . . . . . . Kick . | . . . . . . . . . . . . . Crush . | . . . . . . . . . . . . . Escape Stasis 4 | . . . . . . . . . 4 . . . Rewire . | . . . . . . . . . . . . . Trap . | . . . . . . . . . . . . . Miscellaneous . | . . . . . . . . . . . . . Route ------- -11/Junkyard -10/Materials -9/Materials (discovered 2 exits: *Mat / Min) -8/Materials -7/Factory -7/DSF -6/Factory -5/Factory -5/DSF -4/Factory (discovered 3 exits: *Res / Upp x2) -3/Research -3/DSF -2/Research (discovered 2 exits: *Tes x2) History --------- Turn | Location | Event 7 | -11/Junkyard | Discovered new exit (range 16) 14 | -11/Junkyard | Entered Materials 54 | -10/Materials | Discovered new exit (range 3) 56 | -10/Materials | Entered another Materials area 56 | -9/Materials | Evolved 2 slots: Propulsion x1, Utility x1 90 | -9/Materials | Identified exit to Mines 143 | -9/Materials | Discovered new exit (range 16) 147 | -9/Materials | Core integrity fell below 50% 151 | -9/Materials | Entered another Materials area 151 | -8/Materials | Evolved 2 slots: Propulsion x1, Utility x1 229 | -8/Materials | Core integrity fell below 50% 246 | -8/Materials | Discovered new exit (range 5) 248 | -8/Materials | Identified exit to Factory 248 | -8/Materials | Entered Factory 248 | -7/Factory | Evolved 2 slots: Propulsion x1, Utility x1 292 | -7/Factory | Identified exit to DSF 292 | -7/Factory | Entered DSF 298 | -7/DSF | Discovered new exit (range 19) 304 | -7/DSF | Identified exit to Factory 304 | -7/DSF | Entered Factory 304 | -6/Factory | Evolved 2 slots: Propulsion x1, Utility x1 387 | -6/Factory | Noticed a derelict Sapper rigging charges 390 | -6/Factory | Spotted B-75 Beast 421 | -6/Factory | Discovered new exit (range 18) 428 | -6/Factory | Identified exit to Factory 429 | -6/Factory | Entered another Factory area 429 | -5/Factory | Evolved 2 slots: Propulsion x1, Utility x1 441 | -5/Factory | Identified exit to DSF 441 | -5/Factory | Entered DSF 453 | -5/DSF | Discovered new exit (range 21) 454 | -5/DSF | Additional patrols routed to DSF 459 | -5/DSF | Identified exit to Factory 459 | -5/DSF | Entered Factory 459 | -4/Factory | Evolved 2 slots: Propulsion x1, Utility x1 517 | -4/Factory | Identified exit to Upper Caves 545 | -4/Factory | Lost 3 parts (1n2u) 545 | -4/Factory | Discovered new exit (range 14) 578 | -4/Factory | Identified exit to Research 579 | -4/Factory | Entered Research 579 | -3/Research | Evolved 2 slots: Propulsion x1, Utility x1 595 | -3/Research | Identified exit to DSF 595 | -3/Research | Entered DSF 597 | -3/DSF | Discovered new exit (range 21) 605 | -3/DSF | Entered Research 605 | -2/Research | Evolved 2 slots: Propulsion x1, Utility x1 633 | -2/Research | Lost 4 parts (2n2u) 687 | -2/Research | Identified exit to Testing 695 | -2/Research | Lost 4 parts (2n1u1w) 699 | -2/Research | Spotted B-90 Cyclops 739 | -2/Research | Spotted B-90 Cyclops 774 | -2/Research | Spotted B-90 Cyclops 805 | -2/Research | Core integrity fell below 50% 814 | -2/Research | Core integrity fell below 20% 815 | -2/Research | Destroyed by B-90 Cyclops with Nova Cannon Last Messages --------------- 00802_ Destroyed Imp. Antigrav System. 00802_ S-43 Plague destroyed. 00802_ Destroyed Imp. Antigrav System. 00802_ S-43 Plague destroyed. 00805_ Slug penetrates P-80 Master. 00805_ Penetrated by Slug. 00805_ Adv. Sensor Array destroyed. 00806_ Impulse Thruster Array destroyed. 00806_ Slug penetrates H-88 Terminator. 00809_ Slug penetrates Wall. 00809_ Penetrated by Slug. 00809_ Impulse Thruster destroyed. 00809_ Penetrated by Slug. 00811_ Drone sends a signal. 00812_ Critical hit (Burn: +37). 00812_ H-88 Terminator retrieves Drone. 00813_ Penetrated by Slug. 00813_ Slug penetrates Wall. 00814_ Adv. Coolant Injector destroyed. 00815_ Machine Analyzer destroyed. Map ----- +----------------------------------------------------+ | ?????????????????????????????????????????????????? | | ?????????????????????????????????????????????????? | | ?????????????????????????????????????????????????? | | ?????????????????????????????????????????????????? | | ?????????????????????????????????????????????????? | | ?????????????????????????????????????????????????? | | ?????????????????????????????????????????????????? | | ????????????????????????????????#######??????????? | | ????????????????????????????????# #??????????? | | ????????????????????????????????# #??????????? | | ????????????????????????????????# #??????????? | | ????????????????????????????????# #??????????? | | ????????????????????????????????# #??????????? | | ????????????????????????????????# #??????????? | | ????????????????????????????????# ?########### | | ????????????????????????????#+###;#+#### = | | ??????????????????????###?#?# sp | | ??????????????????????# # ?# # """ | | ????????????????????### ;### # """ | | ????????????????????# * # """ | | ????????????????????# BB uh # | | ????????????????????# BB bgp " " | | ?"T"????????????????# g h | | ?"""??#?????????????# !! ####### * " | | ??????# ???????????# ! ##????# [ %% | | ?????## ########## @ T#????# %[[ | | ???? g ] #????# = | | ???? t ##????## # | | ???? =g #??????# # | | ???? !! #??????### # ### | | ??????########+###### #############???#######?? | | ????????????????????# gh# #???????????? | | ????????????????????# # #???????????? | | ????????????????????# n/ #???????????? | | ????????????????????#t Y# #???????????? | | ????????????????????# ng# #???????????? | | ????????????????????# # #???????????? | | ????????????????????# # #???????????? | | ????????????????????# #############???????????? | | ???????#########+#### BB########????????????????? | | ??? A B #????????????????? | | ??? #????????????????? | | ??? = #????????????????? | | ???? =% #????????????????? | | ????######################## #????????????????? | | ?????????????????# # % #????????????????? | | ?????????????????# !** # ! ########?????????? | | ???????#######???# !** + #?????????? | | ???????# #???# !** # #?????????? | | ???????# #???# # #?????????? | +----------------------------------------------------+ Best States ------------- Heat Dissipation 49 Coolant Potential 100 Energy Generation 25 Energy Capacity 350 Matter Stores 300 Matter Capacity 300 Sight Range 22 Robot Scan Range 16 Terrain Scan Range 14 Terrain Scan Density 210 Armor Coverage 375 Evasion (%) 75 Offensive Hacking 10 Defensive Hacking 30 Item Schematics ----------------- None Robot Schematics ------------------ None Fabricated ------------ Nothing Alien Tech Used ----------------- None Achievements -------------- None Challenges ------------ None Game ------ Seed ShockShieldAutogun Manual? 0 Play Time 00:47:10 Cumulative 233.8 hours Start 2023.03.22 @ 23:02:55 End 2023.03.22 @ 23:53:56 Sessions 1 Manual Loads 0 Difficulty Rogue Special Mode None Game No. 132 Rogue 132 Adventurer 0 Explorer 0 Win Type - Total 10 Types 6/0/1/2/0/0/1/0/0 Lore% 77 Gallery% 81 Achievement% 74 Wizard Run 0 Options --------- ASCII 0 Keyboard 1 Movement Arrows Keybinds 0 Fullscreen 2 Font 18/X11 Map View 76x50 Tactical HUD 1 Map Filters NONE Filters NONE Steam 1 RUN: 8cd548bd-a976-4c50-8b54-5c61b895c79c